bitfinex-derivatives/quotes_SOLF0:USTF0_20241211
["timestamp","ask_amount","ask_price","bid_price","bid_amount"]
[1733934167714,9.98795199,229.94,229.87,5.43589368]
[1733934167913,9.98795199,229.94,229.86,2.1733]
[1733934168108,9.98795199,229.94,229.87,5.43589368]
[1733934168305,2.1731,229.9,229.88,5.43589368]
[1733934168509,2.1731,229.9,229.89,5.43589368]
[1733934168718,9.98795199,229.94,229.89,5.43589368]
[1733934168909,2.3,229.97,229.9,5.43589368]
[1733934169116,2.3,229.97,229.91,5.43589368]
[1733934169315,2.3,229.97,229.92,5.43589368]
[1733934169620,2.1726,229.95,229.83,12.28795199]
[1733934169915,2.1726,229.95,229.84,5.43497952]
[1733934170208,2.3,229.97,229.85,5.43497952]
[1733934170414,2.3,229.97,229.86,5.43497952]
[1733934170613,9.98795199,229.96,229.87,7.60817952]
[1733934170809,9.98795199,229.96,229.83,12.28795199]
[1733934170810,2.173,229.9,229.88,5.43497952]
[1733934171015,2.173,229.9,229.89,5.43497952]
[1733934171216,4.453,229.9,229.89,5.43545134]
[1733934171409,4.453,229.9,229.71,15.21739151]
[1733934171410,22.94702982,229.9,229.71,18.06169151]
[1733934171613,9.98795199,229.84,229.71,18.06169151]
[1733934171911,12.26795199,229.9,229.71,18.06169151]
[1733934171912,2.1742,229.77,229.72,2.1747]
[1733934172108,2.1742,229.77,229.71,2.8443]
[1733934172911,12.26795199,229.81,229.71,2.8443]
[1733934173110,2.1741,229.79,229.73,2.1746]
[1733934173317,2.28,229.81,229.71,8.07515506]
[1733934173719,2.28,229.84,229.72,2.28]
[1733934173920,9.98795199,229.87,229.73,9.98795199]
[1733934174219,2.1735,229.84,229.73,9.98795199]
[1733934176525,2.1736,229.83,229.73,9.98795199]
[1733934176921,2.1736,229.83,229.78,2.174]
[1733934177223,2.1736,229.83,229.73,9.98795199]
[1733934178622,2.1736,229.83,229.79,2.174]
[1733934180428,12.26795199,229.87,229.73,9.98795199]
[1733934180619,9.98795199,229.9,229.76,9.98795199]
[1733934180820,12.26795199,229.93,229.79,9.98795199]
[1733934181020,2.173,229.9,229.8,5.1147]
[1733934181224,2.173,229.9,229.8,6.5378]
[1733934181420,2.1731,229.89,229.85,2.1733]
[1733934181626,17.59759865,229.93,229.8,6.5378]
[1733934182225,12.26795199,229.93,229.87,2.1732]
[1733934182523,2.28,229.93,229.87,2.1732]
[1733934182720,4.4528,229.93,229.82,9.98795199]
[1733934182921,9.98795199,229.96,229.82,9.98795199]
[1733934183128,2.28,229.97,229.85,9.98795199]
[1733934183324,2.1726,229.94,229.86,2.28]
[1733934183529,2.28,229.97,229.86,2.28]
[1733934183931,2.1724,229.97,229.92,2.1727]
[1733934184131,2.1724,229.97,229.87,5.4346894]
[1733934184324,2.1724,229.96,229.91,2.1728]
[1733934184525,12.26795199,229.99,229.91,2.1728]
[1733934184724,12.26795199,229.99,229.87,5.4346894]
[1733934184924,2.1725,229.96,229.92,2.1727]
[1733934185530,2.1725,229.96,229.93,5.43406909]
[1733934185731,2.1725,229.96,229.92,2.1727]
[1733934185926,2472.35351451,230.0,229.96,2.1724]
[1733934185927,2472.24561451,230.0,229.96,2.1724]
[1733934187037,2.1722,229.99,229.95,2.1725]
[1733934187628,2470.07351451,230.0,229.96,2.1724]
[1733934187827,2470.07351451,230.0,229.91,12.26795199]
[1733934188027,2470.07351451,230.0,229.92,5.43318992]
[1733934188227,2470.07351451,230.0,229.97,2.1723]
[1733934188425,2470.07351451,230.0,229.91,12.26795199]
[1733934188829,2470.07351451,230.0,229.99,2.1721]
[1733934189034,2470.07351451,230.0,229.99,7.60469217]
[1733934189235,2470.07351451,230.0,229.99,2.1721]
[1733934189532,2459.10081451,230.0,229.99,2.1721]
[1733934189730,2459.10081451,230.0,229.99,7.60457439]
[1733934190526,2459.10081451,230.0,229.99,5.43247439]
[1733934190733,2459.10081451,230.0,229.9,1.3964]
[1733934190929,2469.0887665,230.0,229.91,5.43308395]
[1733934191133,2.28,229.99,229.92,5.43308395]
[1733934191334,2.28,229.99,229.86,5.21854671]
[1733934191529,2.1726,229.95,229.86,5.21854671]
[1733934191726,2459.10081451,230.0,229.87,5.43396759]
[1733934191932,2459.10081451,230.0,229.88,5.43396759]
[1733934192128,2461.27281451,230.0,229.89,9.98795199]
[1733934192326,2459.10081451,230.0,229.9,2.28]
[1733934192527,2459.10081451,230.0,229.96,2.1724]
[1733934192830,2459.10081451,230.0,229.9,2.28]
[1733934193031,2459.10081451,230.0,229.91,5.43337804]
[1733934193232,2459.10081451,230.0,229.92,5.43337804]
[1733934193433,2459.10081451,230.0,229.93,5.43337804]
[1733934193732,2459.10081451,230.0,229.9,2.28]
[1733934194136,2459.10081451,230.0,229.92,9.98795199]
[1733934194340,2459.10081451,230.0,229.93,5.43323987]
[1733934194536,2459.10081451,230.0,229.94,5.43323987]
[1733934194732,2459.10081451,230.0,229.95,7.71303474]
[1733934194939,2459.10081451,230.0,229.95,2.28]
[1733934195837,2459.10081451,230.0,229.97,2.1722]
[1733934196639,2461.27281451,230.0,229.95,4.4524]
[1733934196941,2459.10081451,230.0,229.93,1.4185]
[1733934197331,2.1723,229.98,229.93,2.1726]
[1733934197636,2459.10081451,230.0,229.89,12.26795199]
[1733934198336,2459.10081451,230.0,229.89,2.28]
[1733934198635,2459.10081451,230.0,229.9,5.43387966]
[1733934198841,2459.10081451,230.0,229.87,2.28]
[1733934199040,2459.10081451,230.0,229.88,5.43386605]
[1733934199237,2469.0887665,230.0,229.89,5.43386605]
[1733934199444,9.98795199,229.97,229.83,9.98795199]
[1733934199641,2.1728,229.92,229.87,2.1731]
[1733934199840,2.1728,229.92,229.84,2.28]
[1733934200038,2.1728,229.92,229.85,5.43471844]
[1733934200238,2.1728,229.92,229.87,2.1732]
[1733934200540,2.1728,229.92,229.84,2.28]
[1733934200736,2.1727,229.94,229.86,9.98795199]
[1733934200939,1.3469,229.99,229.89,9.98795199]
[1733934201134,2459.10081451,230.0,229.92,9.98795199]
[1733934201734,2459.10081451,230.0,229.93,5.43325184]
[1733934202136,2459.10081451,230.0,229.94,5.43325184]
[1733934202344,2459.10081451,230.0,229.99,2.1721]
[1733934203244,2459.10081451,230.0,229.96,9.98795199]
[1733934203436,2459.10081451,230.0,229.97,5.43240079]
[1733934203634,2459.10081451,230.0,229.96,9.98795199]
[1733934203836,2459.10081451,230.0,229.97,5.43243505]
[1733934204037,2459.10081451,230.0,229.96,9.98795199]
[1733934204239,2459.10081451,230.0,229.99,2.1721]
[1733934204746,2459.10081451,230.0,229.97,2.1723]
[1733934205038,2459.10081451,230.0,229.94,2.28]
[1733934205340,2459.10081451,230.0,229.99,2.1721]
[1733934205646,2459.10081451,230.0,229.94,2.28]
[1733934205949,2459.10081451,230.0,229.95,5.43278842]
[1733934206139,2459.10081451,230.0,229.94,2.28]
[1733934206140,2459.10081451,230.0,229.96,5.43278842]
[1733934206342,2459.10081451,230.0,229.94,2.28]
[1733934206541,2459.10081451,230.0,229.99,2.1721]
[1733934207444,2459.10081451,230.0,229.94,2.28]
[1733934207745,2459.10081451,230.0,229.95,5.43266293]
[1733934207944,2459.10081451,230.0,229.94,2.28]
[1733934208143,2459.10081451,230.0,229.95,5.43276868]
[1733934208444,2459.10081451,230.0,229.94,2.28]
[1733934208640,2459.10081451,230.0,229.98,2.1722]
[1733934210643,2459.10081451,230.0,229.93,5.3926]
[1733934210843,2459.10081451,230.0,229.94,5.4327665]
[1733934211044,2459.10081451,230.0,229.92,9.98795199]
[1733934211243,2461.27291451,230.0,229.95,2.1724]
[1733934211545,2461.27291451,230.0,229.9,4.9139]
[1733934211744,2461.27291451,230.0,229.91,5.43320755]
[1733934211946,2461.27291451,230.0,229.95,2.1724]
[1733934213248,2459.10081451,230.0,229.93,2.1726]
[1733934213441,2459.10081451,230.0,229.89,9.98795199]
[1733934213647,2459.10081451,230.0,229.9,5.43393376]
[1733934213847,2459.10081451,230.0,229.87,7.813]
[1733934214039,2459.10081451,230.0,229.88,5.43399718]
[1733934214244,2459.10081451,230.0,229.89,5.43399718]
[1733934214444,2459.10081451,230.0,229.9,5.43399718]
[1733934214746,2459.10081451,230.0,229.94,2.1725]
[1733934214947,2459.10081451,230.0,229.89,12.26795199]
[1733934215141,2459.10081451,230.0,229.9,5.43374863]
[1733934215344,2459.10081451,230.0,229.91,5.43374863]
[1733934215645,2459.10081451,230.0,229.92,5.43374863]
[1733934215847,2459.10081451,230.0,229.92,9.98795199]
[1733934216047,2459.10081451,230.0,229.93,5.4332734]
[1733934216244,2459.10081451,230.0,229.94,2.28]
[1733934216448,2459.10081451,230.0,229.95,9.98795199]
[1733934217646,2459.10081451,230.0,229.94,2.28]
[1733934217847,2459.10081451,230.0,229.92,9.98795199]
[1733934218044,2459.10081451,230.0,229.93,5.43356872]
[1733934218249,2459.10081451,230.0,229.94,5.43356872]
[1733934218546,2.1721,229.99,229.95,2.1724]
[1733934218948,2461.27281451,230.0,229.93,2.1727]
[1733934219150,2459.10081451,230.0,229.94,5.43344301]
[1733934219342,2459.10081451,230.0,229.95,5.43342324]
[1733934219545,2459.10081451,230.0,229.9,2.28]
[1733934219745,2459.10081451,230.0,229.91,5.43341996]
[1733934219948,2459.10081451,230.0,229.92,5.43341996]
[1733934220149,2459.10081451,230.0,229.93,5.43341996]
[1733934220351,2461.27281451,230.0,229.95,2.1725]
[1733934220748,2461.27281451,230.0,229.9,2.28]
[1733934220749,2461.27281451,230.0,229.96,2.1724]
[1733934220949,2459.10081451,230.0,229.92,9.98795199]
[1733934221352,2459.10081451,230.0,229.93,5.43320378]
[1733934221650,2459.10081451,230.0,229.94,5.43320378]
[1733934221847,2459.10081451,230.0,229.99,2.1721]
[1733934222551,2459.10081451,230.0,229.99,7.60530378]
[1733934224355,2379.40361132,230.0,229.99,17.59325577]
[1733934224852,2317.40361132,230.0,229.99,17.59325577]
[1733934227055,2317.40361132,230.0,229.99,22.76663831]
[1733934229755,2313.01081132,230.0,229.99,22.76663831]
[1733934229954,2308.61891132,230.0,229.99,22.76663831]
[1733934230859,2308.61891132,230.0,229.99,25.10663831]
[1733934231859,2308.61891132,230.0,229.99,7.60530378]
[1733934232762,2308.61891132,230.0,229.99,9.94530378]
[1733934234059,2308.61891132,230.0,229.99,9.94355986]
[1733934237368,2308.61891132,230.0,229.99,7.60355986]
[1733934240262,2308.61891132,230.0,229.91,9.98795199]
[1733934240461,2308.61891132,230.0,229.99,5.43256914]
[1733934240658,2308.61891132,230.0,229.94,7.62265893]
[1733934240864,2308.61891132,230.0,229.99,2.1721]
[1733934241063,2308.61891132,230.0,229.99,7.60466914]
[1733934244061,2308.61891132,230.0,229.99,2.1721]
[1733934244268,2308.61891132,230.0,229.99,7.60384725]
[1733934245768,2308.61891132,230.0,229.99,2.1721]
[1733934246069,2308.61891132,230.0,229.99,7.60466103]
[1733934246974,2246.61891132,230.0,229.99,7.60466103]
[1733934248877,2246.61891132,230.0,229.99,2.1721]
[1733934249369,2246.61891132,230.0,229.99,7.60431172]
[1733934250377,2184.61891132,230.0,229.99,7.60431172]
[1733934255284,2184.61891132,230.0,229.99,2.1721]
[1733934255883,2184.61891132,230.0,229.99,7.60454558]
[1733934257583,2184.61891132,230.0,229.92,2.34]
[1733934258485,2184.61891132,230.0,229.82,2.1714]
[1733934258486,2194.60686331,230.0,229.82,2.1714]
[1733934258679,2194.60686331,230.0,229.87,2.28]
[1733934259075,2184.61891132,230.0,229.87,2.28]
[1733934259279,2184.61891132,230.0,229.93,2.1727]
[1733934259280,2194.60686331,230.0,229.93,2.1727]
[1733934259480,2194.60686331,230.0,229.87,2.28]
[1733934259683,2184.61891132,230.0,229.94,9.98795199]
[1733934259880,2184.61891132,230.0,229.99,2.1723]
[1733934260080,2176.79733391,230.0,229.99,13.14294157]
[1733934260884,2165.93518075,230.0,229.99,10.86294157]
[1733934261090,2165.93518075,230.0,229.99,2.1723]
[1733934263396,2103.93518075,230.0,229.99,2.1723]
[1733934264091,2103.93518075,230.0,229.95,2.28]
[1733934264295,2103.93518075,230.0,229.99,2.1721]
[1733934264491,2041.93518075,230.0,229.99,2.1721]
[1733934265193,2041.93518075,230.0,229.98,2.1722]
[1733934265396,2041.93518075,230.0,229.96,2.28]
[1733934265784,2041.93518075,230.0,229.99,2.1721]
[1733934266494,2041.93518075,230.0,229.96,2.28]
[1733934267695,2041.93518075,230.0,229.98,2.1722]
[1733934267897,2041.93518075,230.0,229.96,2.28]
[1733934269192,2041.93518075,230.0,229.99,2.1721]
[1733934269590,2041.93518075,230.0,229.99,7.6043326]
[1733934269893,2041.93518075,230.0,229.99,5.4322326]
[1733934270095,2041.93518075,230.0,229.89,7.56618565]
[1733934270294,2.8322,229.99,229.89,7.56618565]
[1733934270595,5.7126,229.99,229.89,7.56618565]
[1733934270991,5.7126,229.99,229.93,2.1726]
[1733934271390,5.7126,229.99,229.89,7.56618565]
[1733934271789,2.8322,229.99,229.91,9.98795199]
[1733934271995,2041.93518075,230.0,229.94,9.98795199]
[1733934272195,2041.93518075,230.0,229.99,2.1721]
[1733934272400,2041.93518075,230.0,229.99,4.4521]
[1733934275493,2041.93518075,230.0,229.99,2.1721]
[1733934280196,2037.54828075,230.0,229.99,2.1721]
[1733934282898,1957.85107756,230.0,229.99,2.1721]
[1733934283101,1823.73874764,230.0,229.99,2.1721]
[1733934283296,1784.49699723,230.0,229.99,12.16005199]
[1733934283606,1589.15409173,230.0,229.99,12.16005199]
[1733934283807,1568.61104616,230.0,229.99,12.16005199]
[1733934284002,1567.61104616,230.0,229.99,12.16005199]
[1733934284198,1564.61104616,230.0,229.99,12.16005199]
[1733934285203,1477.75430069,230.0,229.99,12.16005199]
[1733934285907,1385.01969259,230.0,229.99,12.16005199]
[1733934286200,1385.01969259,230.0,229.99,2.1721]
[1733934286406,1361.6583375,230.0,229.99,2.1721]
[1733934286603,1361.6583375,230.0,229.99,4.4521]
[1733934287606,1361.6583375,230.0,229.99,14.44005199]
[1733934287907,1361.6583375,230.0,229.99,4.4521]
[1733934288105,1274.78007664,230.0,229.99,4.4521]
[1733934288302,1274.78007664,230.0,229.99,14.44005199]
[1733934288503,1274.78007664,230.0,229.99,4.4521]
[1733934288703,1218.44422854,230.0,229.99,4.4521]
[1733934289205,1218.44422854,230.0,229.99,2.1721]
[1733934289407,1218.44422854,230.0,229.99,4.5321]
[1733934290206,1195.08287345,230.0,229.99,4.5321]
[1733934290901,1108.18836089,230.0,229.99,4.5321]
[1733934291803,1051.85251279,230.0,229.99,4.5321]
[1733934292504,1015.45375279,230.0,229.99,4.5321]
[1733934293102,928.55924023,230.0,229.99,4.5321]
[1733934294812,885.26079704,230.0,229.99,4.5321]
[1733934295411,848.86203704,230.0,229.99,4.5321]
[1733934296702,848.86203704,230.0,229.99,2.1721]
[1733934296906,812.46327704,230.0,229.99,4.5321]
[1733934297802,769.16483385,230.0,229.99,4.5321]
[1733934298511,732.76607385,230.0,229.99,4.5321]
[1733934299114,645.88289486,230.0,229.99,4.5321]
[1733934299313,645.88289486,230.0,229.99,14.52005199]
[1733934299614,609.48413486,230.0,229.99,14.52005199]
[1733934300106,568.79458445,230.0,229.99,14.52005199]
[1733934300310,568.79458445,230.0,229.99,4.5321]
[1733934301214,547.48619167,230.0,229.99,4.5321]
[1733934301409,412.87195952,230.0,229.99,4.5321]
[1733934301614,407.38295952,230.0,229.99,14.52005199]
[1733934301810,364.78230911,230.0,229.99,14.52005199]
[1733934302014,352.12570911,230.0,229.99,14.52005199]
[1733934302213,346.17150911,230.0,229.99,14.52005199]
[1733934302418,341.07820911,230.0,229.99,14.52005199]
[1733934302613,304.67944911,230.0,229.99,14.52005199]
[1733934302815,301.22564911,230.0,229.99,14.52005199]
[1733934303014,297.78444911,230.0,229.99,14.52005199]
[1733934303410,207.75747696,230.0,229.99,14.52005199]
[1733934303714,193.29378418,230.0,229.99,14.52005199]
[1733934304118,190.35778418,230.0,229.99,4.5321]
[1733934304320,119.10577377,230.0,229.99,4.5321]
[1733934305021,116.85807377,230.0,229.99,4.5321]
[1733934305214,113.84357377,230.0,229.99,4.5321]
[1733934305521,69.30551377,230.0,229.99,19.94864677]
[1733934305720,2.7225,230.17,230.13,2.1708]
[1733934305909,2.7225,230.17,230.14,7.78859478]
[1733934306214,2.7225,230.17,230.15,5.42859478]
[1733934306418,2.7225,230.17,230.14,2.36]
[1733934306614,2.7225,230.17,230.15,5.42847301]
[1733934306916,2.7225,230.17,230.14,2.36]
[1733934307118,2.7225,230.17,230.16,2.1705]
[1733934307314,2.7225,230.17,230.16,7.59894047]
[1733934307615,2.7225,230.17,230.16,5.42844047]
[1733934308215,2.7225,230.17,230.16,7.59894047]
[1733934308919,2.7225,230.17,230.16,2.1705]
[1733934309114,2.7298,230.18,230.16,2.1705]
[1733934309318,2.7298,230.18,230.17,2.1705]
[1733934309512,2.9089,230.24,230.16,5.42765924]
[1733934309818,5.713,230.24,230.23,2.1699]
[1733934310017,5.713,230.24,230.23,9.95755924]
[1733934310213,5.713,230.24,230.23,7.78765924]
[1733934310513,5.713,230.24,230.23,1.04105924]
[1733934310713,5.713,230.24,230.22,2.36]
[1733934312314,2.9,230.29,230.23,2.36]
[1733934312515,9.98795199,230.27,230.23,2.36]
[1733934312717,9.98795199,230.27,230.22,2.36]
[1733934312918,9.98795199,230.24,230.12,5.33364091]
[1733934313122,9.98795199,230.24,230.13,2.36]
[1733934313419,9.98795199,230.24,230.16,2.1705]
[1733934313616,9.98795199,230.24,230.13,2.36]
[1733934313617,2.7993,230.23,230.13,2.36]
[1733934314021,2.7993,230.23,230.18,2.1704]
[1733934314220,2.7993,230.23,230.19,2.36]
[1733934314521,2.7993,230.23,230.2,2.36]
[1733934315116,2.7993,230.23,230.21,9.98795199]
[1733934315322,2.7993,230.23,230.22,2.17]
[1733934315621,2.9,230.29,230.21,9.98795199]
[1733934315824,2.9,230.29,230.27,2.1695]
[1733934316126,2.9,230.29,230.28,2.36]
[1733934316915,5.5496,230.34,230.24,9.98795199]
[1733934317113,5.5496,230.34,230.25,2.36]
[1733934318220,5.5496,230.34,230.33,2.1689]
[1733934318415,5.5496,230.34,230.33,4.4689]
[1733934319123,2.3,230.6,230.33,2.3]
[1733934319324,2.679,230.46,230.37,9.98795199]
[1733934319524,2.679,230.46,230.38,2.3]
[1733934319822,2.679,230.46,230.4,9.98795199]
[1733934320325,2.679,230.46,230.44,2.1679]
[1733934320520,2.679,230.46,230.45,2.3]
[1733934322824,2.679,230.46,230.44,2.3]
[1733934323216,2.679,230.46,230.45,2.3]
[1733934323419,2.679,230.46,230.37,15.1335349]
[1733934323420,2.679,230.46,230.43,2.3]
[1733934324323,2.679,230.46,230.37,5.14558291]
[1733934324528,2.679,230.46,230.38,7.72235742]
[1733934324721,2.679,230.46,230.39,5.42235742]
[1733934325024,2.679,230.46,230.4,5.42235742]
[1733934325224,2.679,230.46,230.41,5.42235742]
[1733934325417,2.679,230.46,230.38,2.3]
[1733934325418,2.679,230.46,230.42,5.42235742]
[1733934325618,2.679,230.46,230.43,2.3]
[1733934325814,2.679,230.46,230.44,2.3]
[1733934326421,2.679,230.46,230.45,2.3]
[1733934326823,2.679,230.46,230.4,2.1683]
[1733934327119,2.679,230.46,230.41,2.3]
[1733934328121,2.679,230.46,230.36,5.2206835]
[1733934328323,12.66695199,230.46,230.37,7.72279618]
[1733934328526,2.1679,230.45,230.38,5.42279618]
[1733934328826,2.1679,230.45,230.37,4.4686]
[1733934329824,14.83475199,230.46,230.38,2.1685]
[1733934330520,12.66695199,230.46,230.39,2.3]
[1733934330720,12.66695199,230.46,230.36,2.1686]
[1733934331024,9.98795199,230.43,230.36,2.0821]
[1733934331218,0.98795199,230.43,230.36,2.0821]
[1733934331417,12.66695199,230.46,230.36,2.0821]
[1733934332529,12.66695199,230.46,230.31,63.61657588]
[1733934332530,9.98795199,230.43,230.31,53.62862389]
[1733934332723,9.98795199,230.43,230.32,2.3]
[1733934333927,12.15605199,230.43,230.36,2.1687]
[1733934334325,12.66695199,230.46,230.33,2.3]
[1733934334627,12.66695199,230.46,230.39,2.1684]
[1733934334628,2.1678,230.45,230.39,2.1684]
[1733934334828,12.66695199,230.46,230.33,2.3]
[1733934335026,12.66695199,230.46,230.34,5.42331439]
[1733934335224,12.66695199,230.46,230.33,2.3]
[1733934335225,14.83475199,230.46,230.4,2.1683]
[1733934335424,2.1678,230.46,230.4,2.1683]
[1733934335626,2.1678,230.46,230.39,2.3]
[1733934335627,5.4775,230.65,230.41,15.40972234]
[1733934335826,5.4775,230.54,230.42,5.42177035]
[1733934336127,5.4775,230.54,230.41,9.98795199]
[1733934336128,5.4775,230.54,230.43,7.72177035]
[1733934336328,5.4775,230.54,230.49,2.1674]
[1733934336527,5.4775,230.54,230.5,2.3]
[1733934337130,2.1671,230.53,230.51,2.3]
[1733934337533,5.4775,230.54,230.51,2.3]
[1733934337727,5.4775,230.54,230.47,2.1676]
[1733934337933,5.4775,230.54,230.48,2.3]
[1733934338524,7.6445,230.54,230.49,2.1674]
[1733934338925,5.4775,230.54,230.5,2.3]
[1733934339126,5.4775,230.54,230.51,2.3]
[1733934340331,5.4775,230.54,230.47,2.1675]
[1733934340533,5.4775,230.54,230.48,2.3]
[1733934340926,17.63245199,230.54,230.48,2.3]
[1733934341830,17.63245199,230.54,230.47,2.1676]
[1733934341831,15.46545199,230.54,230.47,2.1676]
[1733934342135,15.46545199,230.54,230.46,2.3]
[1733934342336,15.46545199,230.54,230.47,2.3]
[1733934343032,2.1671,230.53,230.47,2.3]
[1733934343236,5.4775,230.54,230.47,2.3]
[1733934343627,5.4775,230.54,230.5,2.1673]
[1733934343828,9.98795199,230.53,230.39,9.98795199]
[1733934344032,9.98795199,230.53,230.4,7.72142927]
[1733934344033,2.1672,230.52,230.4,7.72142927]
[1733934344330,2.1672,230.52,230.41,2.3]
[1733934344529,2.1672,230.52,230.45,2.1677]
[1733934344733,12.15505199,230.53,230.46,2.3]
[1733934345639,12.15505199,230.53,230.46,4.4677]
[1733934346347,2.1673,230.51,230.46,2.3]
[1733934346744,9.98795199,230.53,230.45,2.3]
[1733934346942,9.98795199,230.53,230.44,2.3]
[1733934347137,9.98795199,230.53,230.45,5.42171151]
[1733934347342,9.98795199,230.5,230.36,9.98795199]
[1733934347543,9.98795199,230.5,230.41,2.1682]
[1733934347744,9.98795199,230.5,230.42,7.72219253]
[1733934348049,9.98795199,230.5,230.43,5.42219253]
[1733934348342,9.98795199,230.5,230.42,2.3]
[1733934348543,9.98795199,230.5,230.43,5.42221697]
[1733934348846,2.1676,230.48,230.44,5.42221697]
[1733934349042,2.1676,230.48,230.42,2.3]
[1733934349245,2.1676,230.48,230.43,5.42216847]
[1733934349441,9.98795199,230.47,230.32,2.7665]
[1733934349640,9.98795199,230.47,230.31,68.84278425]
[1733934349641,9.98795199,230.47,230.33,7.763171]
[1733934349847,2.168,230.44,230.36,2.1686]
[1733934350147,5.6482,230.43,230.37,2.34]
[1733934350339,5.6482,230.43,230.38,5.423171]
[1733934350543,5.6482,230.43,230.37,2.34]
[1733934350740,5.6482,230.43,230.38,5.42373387]
[1733934350944,2.1681,230.42,230.39,5.42373387]
[1733934351245,5.6482,230.43,230.31,68.84278425]
[1733934351441,5.6482,230.43,230.32,7.76346808]
[1733934351644,5.6482,230.43,230.34,9.98795199]
[1733934351843,5.6482,230.43,230.35,5.42346808]
[1733934352151,5.6482,230.43,230.36,2.34]
[1733934352353,5.6482,230.43,230.37,2.34]
[1733934352545,5.6482,230.43,230.32,9.98795199]
[1733934352748,5.6482,230.43,230.38,5.42308495]
[1733934352944,5.6482,230.43,230.39,5.42308495]
[1733934353148,5.6482,230.43,230.33,2.34]
[1733934353149,5.6482,230.43,230.4,5.42308495]
[1733934353345,5.6482,230.43,230.33,2.34]
[1733934353546,2.1682,230.42,230.36,2.1686]
[1733934353753,2.1682,230.42,230.37,5.42342601]
[1733934353947,9.98795199,230.38,230.22,15.21739151]
[1733934354151,9.98795199,230.35,230.23,2.34]
[1733934354546,9.98795199,230.35,230.21,5.07992243]
[1733934354753,9.98795199,230.35,230.24,2.34]
[1733934355050,2.169,230.32,230.25,2.1697]
[1733934355555,2.169,230.33,230.26,2.1695]
[1733934355743,9.98795199,230.35,230.24,2.34]
[1733934357246,9.98795199,230.35,230.21,5.07992243]
[1733934357447,9.98795199,230.35,230.22,2.34]
[1733934358154,2.1691,230.32,230.25,2.1696]
[1733934358355,9.98795199,230.35,230.26,2.34]
[1733934359156,15.12216283,230.38,230.26,2.34]
[1733934359650,2.1687,230.36,230.29,2.1693]
[1733934360258,2.1688,230.35,230.28,2.1694]
[1733934360453,2.1688,230.35,230.26,2.34]
[1733934360454,9.98795199,230.35,230.26,2.34]
[1733934360859,5.13421084,230.38,230.26,2.34]
[1733934360860,9.98795199,230.32,230.26,2.34]
[1733934361455,9.98795199,230.35,230.26,2.34]
[1733934361959,9.98795199,230.35,230.26,4.5096]
[1733934362562,2.169,230.33,230.26,4.5096]
[1733934362753,9.98795199,230.35,230.26,4.5096]
[1733934363058,9.98795199,230.35,230.26,2.1696]
[1733934363360,9.98795199,230.29,230.16,2.34]
[1733934363559,9.98795199,230.26,230.16,2.34]
[1733934364361,2.1699,230.23,230.16,4.5105]
[1733934365858,9.98795199,230.26,230.16,2.34]
[1733934366058,9.98795199,230.23,230.17,5.42710811]
[1733934366266,9.98795199,230.2,230.18,5.42710811]
[1733934366459,9.98795199,230.2,229.99,54.08025974]
[1733934366758,9.98795199,230.14,230.02,9.98795199]
[1733934366963,9.98795199,230.14,230.03,7.76783286]
[1733934367158,2.1709,230.13,230.04,5.42931348]
[1733934367355,9.98795199,230.14,230.04,5.42931348]
[1733934367555,9.98795199,230.14,230.05,7.76931348]
[1733934367759,9.98795199,230.14,230.08,2.1713]
[1733934367956,9.98795199,230.14,230.09,5.42931348]
[1733934368159,9.98795199,230.14,230.05,2.34]
[1733934368160,9.98795199,230.17,230.1,5.42931348]
[1733934368461,9.98795199,230.17,230.11,5.42931348]
[1733934368764,9.98795199,230.17,230.12,5.42931348]
[1733934368964,9.98795199,230.17,230.11,2.171]
[1733934369158,9.98795199,230.17,230.12,5.42860552]
[1733934369356,9.98795199,230.17,230.13,5.42797964]
[1733934369556,9.98795199,230.17,230.11,2.171]
[1733934369758,9.98795199,230.17,230.12,5.42817138]
[1733934369960,9.98795199,230.17,230.13,5.42817138]
[1733934370159,9.98795199,230.17,230.1,2.34]
[1733934370356,2.7507,230.19,230.13,2.1707]
[1733934370559,9.98795199,230.2,230.1,2.34]
[1733934370962,2.7691,230.32,230.1,2.34]
[1733934370963,9.98795199,230.23,230.1,2.34]
[1733934371163,9.98795199,230.23,230.11,12.64935199]
[1733934371371,9.98795199,230.23,230.11,15.54785199]
[1733934371560,9.98795199,230.23,230.12,5.42808168]
[1733934371766,9.98795199,230.23,230.13,5.42808168]
[1733934371959,12.15785199,230.23,230.14,5.42808168]
[1733934372161,9.98795199,230.2,230.14,2.34]
[1733934373468,2.7262,230.22,230.15,5.42783561]